fUST/lending_fUST_20260423
["ID","MTS","AMOUNT","RATE_DAILY","PERIOD"]
[421011008,1776918638739,-1200.0,9.998e-05,2]
[421011010,1776918638749,-300.0,9.999e-05,2]
[421011012,1776918638758,-300.0,9.999e-05,2]
[421011014,1776918638768,-300.0,9.999e-05,2]
[421011017,1776918638777,-713.10819449,0.0001,2]
[421011019,1776918638787,-5888.46473123,0.0001,2]
[421011021,1776918638796,-583.54685487,0.0001,2]
[421011023,1776918638806,-248.791,0.00010998,2]
[421011025,1776918638815,-1200.0,0.00010998,2]
[421011026,1776918638824,-50000.0,0.00010998,2]
[421011028,1776918638835,-301.0,0.00010999,2]
[421011030,1776918638845,-315.0,0.00010999,2]
[421011031,1776918638854,-177.0,0.00011716,2]
[421011032,1776918638863,-841.830721,0.00011763,2]
[421011033,1776918638872,-841.830721,0.00013251,2]
[421011034,1776918638882,-1000.0,0.00013699,2]
[421011035,1776918638891,-334.12354516,0.000137,2]
[421011036,1776918638901,-726.75516317,0.000137,2]
[421011037,1776918638910,-537.2913418,0.000137,2]
[421011039,1776918638920,-508.93902448,0.000137,2]
[421011040,1776918638929,-19028.66660506,0.000137,2]
[421011041,1776918638939,-204.0,0.00013716,2]
[421011042,1776918638948,-501.85328751,0.00013773,2]
[421011043,1776918638957,-501.20963161,0.00013773,2]
[421011044,1776918638968,-596.94259755,0.00013773,2]
[421011045,1776918638977,-500.0,0.00013798,2]
[421011046,1776918638987,-392.12180649,0.00013798,2]
[421011047,1776918638996,-500.0,0.00013798,2]
[421011048,1776918639005,-500.0,0.00013798,2]
[421011049,1776918639015,-616.58453284,0.00013798,2]
[421011050,1776918639024,-122096.76165491,0.00013799,2]
[421011118,1776918643672,-940.27624659,0.00013661,10]
[421011119,1776918643781,-4059.72375341,0.00013661,10]
[421011120,1776918643791,-30501.7629501,0.00013799,2]
[421011126,1776918646749,-13623.64875864,0.00013799,2]
[421011129,1776919161165,985.84,0.00024657,120]
[421011130,1776919244499,1000.0,0.00024,120]
[421011148,1776919609161,-171.02632281,0.00012959,10]
[421011149,1776919646078,176.6,0.00024657,120]
[421011151,1776919834426,-5000.0,0.00012701,10]
[421011152,1776919834437,-150.0,0.00012993,2]
[421011153,1776919834448,-1683.6614423,0.00013222,2]
[421011154,1776919834459,-199.033,0.00013327,2]
[421011155,1776919834471,-1808.29922754,0.00013328,2]
[421011156,1776919834483,-1179.26578823,0.000134,2]
[421011157,1776919834494,-548.62901136,0.000134,2]
[421011158,1776919834510,-569.38963267,0.00013423,2]
[421011159,1776919834523,-4054.81116724,0.00013428,2]
[421011160,1776919834537,-16650.08327941,0.00013473,2]
[421011161,1776919834548,-4440.81205495,0.000135,2]
[421011162,1776919834565,-500.0,0.00013573,2]
[421011163,1776919834576,-636.44664875,0.00013573,2]
[421011164,1776919835113,-4769.56974298,0.00013573,2]
[421011165,1776919835123,-397.9617317,0.00013573,2]
[421011166,1776919835134,-502.4567424,0.00013673,2]
[421011167,1776919835144,-500.0,0.00013673,2]
[421011168,1776919835155,-500.0,0.00013698,2]
[421011169,1776919835165,-501.24141859,0.00013698,2]
[421011170,1776919835176,-500.0,0.00013698,2]
[421011171,1776919835189,-500.0,0.00013698,2]
[421011172,1776919835201,-564.52,0.00013698,2]
[421011173,1776919835211,-1000.0,0.00013699,2]
[421011174,1776919835222,-5763.21818982,0.00013928,2]
[421011175,1776919835232,-153.81167246,0.00014,2]
[421011176,1776919835243,-7073.32488236,0.00014028,2]
[421011177,1776919835253,-1000.0,0.00014121,2]
[421011178,1776919835265,-1000.0,0.00014221,2]
[421011179,1776919835278,-600.0,0.00014279,2]
[421011180,1776919835288,-1622.31973221,0.000148,2]
[421011181,1776919835299,-177.0,0.00014993,2]
[421011182,1776919835309,-247.71273094,0.000151,2]
[421011183,1776919835320,-16650.08327937,0.00015105,2]
[421011184,1776919835330,-179.9820018,0.00015658,2]
[421011185,1776919835341,-200.0,0.00015703,2]
[421011186,1776919835353,-720.0,0.00015707,2]
[421011187,1776919835364,-240.60826338,0.00016,2]
[421011188,1776919835374,-288.58806228,0.00016079,2]
[421011189,1776919835385,-500.0,0.00016079,2]
[421011190,1776919835396,-500.0,0.00016079,2]
[421011191,1776919835406,-500.0,0.00016079,2]
[421011192,1776919835417,-500.0,0.00016079,2]
[421011193,1776919835427,-151.5,0.00016079,2]
[421011194,1776919835438,-467.12671806,0.00016079,2]
[421011195,1776919835448,-151.5,0.00016079,2]
[421011196,1776919835458,-231.01573045,0.00016079,2]
[421011197,1776919835468,-151.5,0.00016079,2]
[421011198,1776919835478,-151.5,0.00016079,2]
[421011199,1776919835488,-151.5,0.00016079,2]
[421011200,1776919835498,-161.97430304,0.00016079,2]
[421011201,1776919835508,-172.20163075,0.00016079,2]
[421011202,1776919835518,-157.51088472,0.00016353,2]
[421011203,1776919835529,-150.00000004,0.000165,2]
[421011204,1776919835539,-333.78788816,0.00016573,2]
[421011205,1776919835549,-2210.0,0.00016627,2]
[421011206,1776919835560,-1409.0,0.00016627,2]
[421011207,1776919835569,-184.0,0.00016627,2]
[421011208,1776919835579,-441.0,0.00016627,2]
[421011209,1776919835590,-150.362,0.00016627,2]
[421011210,1776919835600,-16650.08327937,0.00016738,2]
[421011211,1776919835609,-508.25588901,0.00016773,2]
[421011212,1776919835619,-1285.61599241,0.000168,2]
[421011213,1776919835631,-160.0,0.00016807,2]
[421011214,1776919835641,-160.0,0.00016807,2]
[421011215,1776919835651,-1438.95838686,0.0001684,2]
[421011216,1776919835662,-204.0,0.00016993,2]
[421011217,1776919835672,-1285.61599241,0.00017,2]
[421011218,1776919835682,-1285.61599241,0.000172,2]
[421011219,1776919835692,-864.0,0.00017278,2]
[421011220,1776919835701,-1285.61599241,0.000173,2]
[421011221,1776919835712,-1285.61599241,0.000175,2]
[421011222,1776919835724,-1285.61599241,0.000177,2]
[421011223,1776919835734,-1285.61599241,0.000179,2]
[421011224,1776919835746,-1285.61599241,0.00018,2]
[421011225,1776919835757,-1285.61599241,0.000182,2]
[421011226,1776919835767,-16650.08327937,0.0001837,2]
[421011227,1776919835778,-1285.61599241,0.000184,2]
[421011228,1776919835788,-500.0,0.0001862,2]
[421011229,1776919835798,-231.0,0.00018993,2]
[421011230,1776919835808,-695.25866472,0.00019005,2]
[421011274,1776919839122,-4564.90902078,0.00018815,10]
[421011275,1776919839131,-304.74133528,0.00019005,2]
[421011276,1776919839140,-300.0,0.000191,2]
[421011277,1776919839150,-1191.0,0.00019178,2]
[421011278,1776919839159,-162.0,0.0001937,3]
[421011279,1776919839169,-151.0,0.00019475,5]
[421011280,1776919839178,-624.48526454,0.00019585,2]
[421011281,1776919839188,-500.0,0.00019585,2]
[421011282,1776919839197,-631.60917299,0.00019585,2]
[421011283,1776919839206,-445.202766,0.00019586,2]
[421011284,1776919839216,-162.65784057,0.00019586,2]
[421011285,1776919839224,-537.6845,0.00019586,2]
[421011286,1776919839234,-537.6845,0.00019586,2]
[421011287,1776919839243,-156.98131636,0.00019586,2]
[421011288,1776919839253,-2150.738,0.00019586,2]
[421011289,1776919839262,-184.0,0.00019627,2]
[421011290,1776919839271,-441.0,0.00019627,2]
[421011291,1776919839281,-557.5788265,0.00019641,2]
[421011292,1776919839290,-578.20924308,0.00019696,2]
[421011293,1776919839300,-262.61,0.00019726,2]
[421011294,1776919839309,-155.24714919,0.00019751,2]
[421011295,1776919839320,-9705.83770977,0.00019825,2]
[421011296,1776919839329,-151.0,0.00019981,5]
[421011297,1776919839339,-352.0,0.0002,2]
[421011298,1776919839348,-165.83262878,0.0002,2]
[421011299,1776919839358,-688.0,0.0002,2]
[421011300,1776919839367,-332.0,0.0002,2]
[421011301,1776919839376,-189.0,0.0002,2]
[421011302,1776919839386,-321.0,0.0002,2]
[421011303,1776919839395,-6314.25224252,0.00020003,2]
[421011384,1776919841171,-6785.73468608,0.00020003,2]
[421011392,1776919843853,-3550.09635077,0.00020003,2]
[421011393,1776919843863,-386.48,0.000201,2]
[421011394,1776919843872,-461.67526834,0.00020134,2]
[421011395,1776919843882,-557.5788265,0.00020134,2]
[421011396,1776919843891,-619.88807743,0.00020134,2]
[421011397,1776919843903,-1610.42722857,0.00020134,2]
[421011398,1776919843913,-15.55708753,0.00020488,7]
[421011399,1776919843926,-135.44291247,0.00020488,7]
[421011400,1776919843935,-300.0,0.0002058,2]
[421011401,1776919843944,-854.60528768,0.0002058,2]
[421011402,1776919846111,-24278.28087416,0.00019586,2]
[421011403,1776919846120,-4162.14063385,0.0002058,2]
[421011404,1776919846129,-449.02602927,0.00020682,2]
[421011405,1776919846139,-511.01390721,0.00020682,2]
[421011406,1776919846148,-2312.83697232,0.00020682,2]
[421011407,1776919846158,-1000.0,0.00020906,2]
[421011409,1776919846167,-244.0,0.00020906,2]
[421011410,1776919846177,-5319.6809017,0.0002097,2]
[421011411,1776919846188,-3449.03,0.0002097,2]
[421011415,1776919847010,-637.0,0.0002,2]
[421011416,1776919847020,-24626.26573667,0.0002097,2]
[421011417,1776919847032,-605.31894625,0.0002097,2]
[421011426,1776920519853,-853.3004623,0.00013699,2]
[421011446,1776921031917,-250.5264,0.00013426,2]
[421011447,1776921031926,-150.0,0.00013563,2]
[421011448,1776921031936,-1000.0,0.00013699,2]
[421011449,1776921031946,-166.66666668,0.00013874,2]
[421011450,1776921031955,-459.53485536,0.000149,2]
[421011451,1776921031965,-600.0,0.00015094,2]
[421011452,1776921031974,-459.53485536,0.00015428,2]
[421011453,1776921031984,-177.0,0.00015563,2]
[421011454,1776921031993,-720.0,0.00016603,2]
[421011455,1776921032007,-459.53485536,0.00016707,2]
[421011456,1776921032016,-254.71227815,0.00016773,2]
[421011457,1776921032025,-1200.0,0.00016799,2]
[421011458,1776921032034,-3213.6985288,0.000168,2]
[421011459,1776921032045,-355.5,0.000168,2]
[421011509,1776921038260,-161.60639128,0.000168,2]
[421011511,1776921038273,-300.0,0.00016802,2]
[421011513,1776921038286,-300.0,0.00016802,2]
[421011515,1776921038299,-300.0,0.00016802,2]
[421011518,1776921038311,-160.0,0.00016807,2]
[421011520,1776921038323,-160.0,0.00016807,2]
[421011522,1776921038336,-3730.80492008,0.00017,2]
[421011525,1776921038349,-3730.80492008,0.000171,2]
[421011527,1776921038362,-3730.80492008,0.000173,2]
[421011529,1776921038375,-645.0,0.00017344,2]
[421011532,1776921038388,-159.226,0.00017344,2]
[421011534,1776921038401,-441.0,0.00017374,2]
[421011536,1776921038413,-184.0,0.00017374,2]
[421011539,1776921038425,-6243.78122979,0.00017497,2]
[421011541,1776921038437,-200.50688615,0.00017497,2]
[421011543,1776921038449,-200.50688614,0.00017499,2]
[421011545,1776921038461,-3730.80492008,0.000175,2]
[421011548,1776921038473,-10284.55999103,0.000175,2]
[421011550,1776921038485,-200.50688614,0.000175,2]
[421011552,1776921038497,-204.0,0.00017563,2]
[421011554,1776921038509,-500.0,0.00017596,2]
[421011556,1776921038521,-500.0,0.00017596,2]
[421011557,1776921038533,-500.0,0.00017596,2]
[421011559,1776921038545,-500.0,0.00017596,2]
[421011561,1776921038558,-500.0,0.00017596,2]
[421011563,1776921038570,-500.0,0.00017596,2]
[421011565,1776921038582,-500.0,0.00017596,2]
[421011566,1776921038594,-423.39035899,0.00017596,2]
[421011567,1776921038606,-500.0,0.00017596,2]
[421011568,1776921038619,-9.13682595,0.00017596,2]
[421011569,1776921038635,-490.86317405,0.00017596,2]
[421011570,1776921038647,-500.0,0.00017596,2]
[421011571,1776921038660,-500.0,0.00017596,2]
[421011572,1776921038672,-500.0,0.00017596,2]
[421011573,1776921038684,-128.78760053,0.00017596,2]
[421011574,1776921038700,-371.21239947,0.00017596,2]
[421011575,1776921038711,-500.0,0.00017596,2]
[421011576,1776921038723,-184.58626036,0.00017596,2]
[421011577,1776921038735,-500.0,0.00017596,2]
[421011578,1776921038748,-500.0,0.00017596,2]
[421011579,1776921038760,-500.0,0.00017596,2]
[421011580,1776921038773,-500.0,0.00017596,2]
[421011581,1776921038785,-500.0,0.00017596,2]
[421011582,1776921038797,-250.91186106,0.00017596,2]
[421011583,1776921038810,-500.0,0.00017596,2]
[421011584,1776921038822,-500.0,0.00017596,2]
[421011585,1776921038834,-500.0,0.00017596,2]
[421011586,1776921038847,-540.34395995,0.00017596,2]
[421011587,1776921038859,-519.10522909,0.00017596,2]
[421011588,1776921038873,-233.71114618,0.00017596,2]
[421011589,1776921038885,-500.0,0.00017596,2]
[421011590,1776921038897,-500.0,0.00017596,2]
[421011591,1776921038909,-500.0,0.00017596,2]
[421011592,1776921038921,-500.0,0.00017596,2]
[421011593,1776921038934,-500.0,0.00017596,2]
[421011594,1776921038948,-500.0,0.00017596,2]
[421011595,1776921038960,-500.0,0.00017596,2]
[421011596,1776921038972,-570.13239026,0.00017597,2]
[421011597,1776921038984,-570.13239026,0.00017597,2]
[421011598,1776921038997,-354.98959519,0.00017597,2]
[421011599,1776921039010,-396.49703809,0.00017597,2]
[421011600,1776921039022,-570.13239026,0.00017597,2]
[421011601,1776921039035,-570.13239026,0.00017597,2]
[421011602,1776921039047,-500.0,0.00017597,2]
[421011603,1776921039059,-570.13239026,0.00017597,2]
[421011604,1776921039070,-570.13239026,0.00017597,2]
[421011605,1776921039083,-570.13239026,0.00017597,2]
[421011606,1776921039095,-570.13239026,0.00017597,2]
[421011607,1776921039107,-570.13239026,0.00017597,2]
[421011608,1776921039119,-570.13239026,0.00017597,2]
[421011609,1776921039131,-570.13239026,0.00017597,2]
[421011610,1776921039143,-570.13239026,0.00017597,2]
[421011611,1776921039155,-570.13239026,0.00017597,2]
[421011612,1776921039167,-570.13239026,0.00017597,2]
[421011613,1776921039179,-570.13239026,0.00017597,2]
[421011614,1776921039192,-570.13239026,0.00017597,2]
[421011615,1776921039204,-570.13239026,0.00017597,2]
[421011616,1776921039216,-570.13239025,0.00017597,2]
[421011617,1776921039228,-570.13239025,0.00017597,2]
[421011618,1776921039240,-570.13239025,0.00017597,2]
[421011619,1776921039252,-570.13239025,0.00017597,2]
[421011620,1776921039265,-570.13239025,0.00017597,2]
[421011621,1776921039277,-570.13239025,0.00017597,2]
[421011622,1776921039289,-570.13239025,0.00017597,2]
[421011623,1776921039300,-570.13239025,0.00017597,2]
[421011624,1776921039312,-570.13239025,0.00017597,2]
[421011625,1776921039324,-701.023909,0.00017598,2]
[421011626,1776921039336,-701.023909,0.00017598,2]
[421011627,1776921039348,-701.023909,0.00017598,2]
[421011628,1776921039359,-701.023909,0.00017598,2]
[421011629,1776921039371,-151.0,0.00017598,2]
[421011630,1776921039383,-284.190792,0.00017598,2]
[421011631,1776921039395,-13555.2103099,0.00017598,2]
[421011632,1776921039409,-14908.63645957,0.00017598,2]
[421011673,1776921040363,-329.49880453,0.00017598,2]
[421011697,1776921044391,-806.06978567,0.00017598,2]
[421011702,1776921046148,-9283.62198951,0.00017598,2]
[421011705,1776921046305,-96246.49637787,0.00017598,2]
[421011864,1776922238575,-1000.0,0.00013699,2]
[421011865,1776922238584,-150.0,0.0001385,2]
[421011866,1776922238594,-177.0,0.0001585,2]
[421011867,1776922238603,-1522.94311707,0.000168,2]
[421011868,1776922238630,-342.45934297,0.000168,2]
[421011869,1776922238640,-160.0,0.00016811,2]
[421011870,1776922238649,-300.0,0.00016997,2]
[421011871,1776922238658,-1200.0,0.00016997,2]
[421011872,1776922238668,-14.28335896,0.00016998,2]
[421011873,1776922238686,-285.71664104,0.00016998,2]
[421011874,1776922238695,-300.0,0.00016998,2]
[421011875,1776922238705,-300.0,0.00016998,2]
[421011876,1776922238714,-560.03821777,0.00016999,2]
[421011877,1776922238724,-194.54576234,0.00016999,2]
[421011878,1776922238733,-248.19012735,0.00016999,2]
[421011879,1776922238742,-613.23391434,0.00016999,2]
[421011880,1776922238753,-1865.40246004,0.00017,2]
[421011881,1776922238762,-28018.71957484,0.00017,2]
[421011883,1776922238773,-18468.42925953,0.00017,2]
[421012025,1776922246701,-1232.21825907,0.00017,2]
[421012167,1776922463621,600.0,0.00024649,120]
[421012177,1776922561595,200.0,0.00024649,120]
[421012181,1776922596697,200.0,0.00024649,120]
[421012219,1776922691152,1000.0,0.00024649,120]
[421012235,1776923213134,-171.02632281,0.00012224,10]
[421012243,1776923432358,-4985.38974213,0.00012193,2]
[421012244,1776923432411,-14.61025787,0.00012193,2]
[421012245,1776923432421,-150.0,0.00012317,2]
[421012246,1776923432430,-422.33056081,0.00012472,2]
[421012247,1776923432442,-77.66943919,0.00012472,2]
[421012248,1776923432451,-500.0,0.00013128,2]
[421012249,1776923432461,-1000.0,0.00013699,2]
[421012250,1776923432470,-250.93208342,0.00013784,2]
[421012356,1776923439002,-167.25585098,0.00013784,2]
[421012357,1776923439014,-177.0,0.00014317,2]
[421012358,1776923439027,-1200.0,0.0001463,2]
[421012359,1776923439039,-1000.0,0.00014631,2]
[421012360,1776923439051,-300.0,0.0001601,2]
[421012361,1776923439064,-300.0,0.0001601,2]
[421012362,1776923439077,-300.0,0.0001601,2]
[421012363,1776923439089,-5700.66959668,0.00016011,2]
[421012364,1776923439102,-50000.0,0.00016111,2]
[421012365,1776923439114,-161.16,0.00016116,2]
[421012366,1776923439127,-161.16,0.00016116,2]
[421012367,1776923439139,-161.16,0.00016116,2]
[421012368,1776923439152,-161.16,0.00016116,2]
[421012369,1776923439164,-161.16,0.00016116,2]
[421012370,1776923439176,-161.16,0.00016116,2]
[421012371,1776923439189,-161.16,0.00016116,2]
[421012372,1776923439201,-161.16,0.00016116,2]
[421012373,1776923439213,-161.18385918,0.00016116,2]
[421012374,1776923439225,-204.0,0.00016317,2]
[421012375,1776923439237,-197.55268387,0.00016425,2]
[421012376,1776923439250,-500.0,0.00016425,2]
[421012377,1776923439261,-500.0,0.00016425,2]
[421012378,1776923439274,-500.0,0.00016425,2]
[421012379,1776923439286,-500.0,0.00016425,2]
[421012380,1776923439298,-500.0,0.00016425,2]
[421012381,1776923439311,-462.03976039,0.00016425,2]
[421012382,1776923439323,-469.51380525,0.00016425,2]
[421012383,1776923439336,-151.5,0.00016425,2]
[421012384,1776923439348,-378.59251824,0.00016599,2]
[421012385,1776923439360,-378.59251822,0.00016599,2]
[421012386,1776923439372,-378.59251822,0.000166,2]
[421012387,1776923439385,-378.59251822,0.000166,2]
[421012388,1776923439397,-4865.41475253,0.000166,2]
[421012389,1776923439409,-378.59251822,0.000166,2]
[421012390,1776923439420,-500.0,0.00016673,2]
[421012391,1776923439433,-500.0,0.00016673,2]
[421012392,1776923439445,-500.0,0.00016673,2]
[421012393,1776923439457,-526.97639654,0.00016673,2]
[421012394,1776923439470,-500.0,0.00016673,2]
[421012395,1776923439482,-410.85709784,0.00016673,2]
[421012396,1776923439494,-500.0,0.00016673,2]
[421012397,1776923439506,-500.0,0.00016673,2]
[421012398,1776923439518,-166.3593696,0.00016673,2]
[421012399,1776923439530,-500.0,0.00016673,2]
[421012400,1776923439542,-220.52058474,0.00016673,2]
[421012401,1776923439554,-159.226,0.00016673,2]
[421012402,1776923439566,-936.42650555,0.00016699,2]
[421012403,1776923439578,-936.42650555,0.00016699,2]
[421012404,1776923439591,-598.49271664,0.00016699,2]
[421012405,1776923439603,-936.42650555,0.00016699,2]
[421012406,1776923439616,-469.95465164,0.00016699,2]
[421012407,1776923439628,-936.42650555,0.00016699,2]
[421012408,1776923439640,-936.42650555,0.00016699,2]
[421012409,1776923439652,-936.42650555,0.00016699,2]
[421012410,1776923439664,-936.42650555,0.00016699,2]
[421012411,1776923439676,-936.42650555,0.00016699,2]
[421012412,1776923439687,-936.42650555,0.00016699,2]
[421012413,1776923439699,-936.42650555,0.00016699,2]
[421012414,1776923439712,-936.42650555,0.00016699,2]
[421012415,1776923439727,-936.42650555,0.00016699,2]
[421012416,1776923439738,-936.42650555,0.00016699,2]
[421012417,1776923439751,-936.42650555,0.00016699,2]
[421012418,1776923439762,-936.42650555,0.00016699,2]
[421012419,1776923439774,-936.42650555,0.00016699,2]
[421012420,1776923439786,-936.42650555,0.00016699,2]
[421012421,1776923439798,-936.42650555,0.00016699,2]
[421012422,1776923439811,-936.42650555,0.00016699,2]
[421012423,1776923439823,-936.42650555,0.00016699,2]
[421012424,1776923439836,-936.42650555,0.00016699,2]
[421012425,1776923439848,-936.42650555,0.00016699,2]
[421012426,1776923439860,-983.24783082,0.00016699,2]
[421012427,1776923439873,-983.24783082,0.00016699,2]
[421012428,1776923439886,-983.24783082,0.00016699,2]
[421012429,1776923439898,-983.24783082,0.00016699,2]
[421012430,1776923439910,-983.24783082,0.00016699,2]
[421012431,1776923439922,-983.24783082,0.00016699,2]
[421012432,1776923439934,-983.24783082,0.00016699,2]
[421012433,1776923439946,-983.24783082,0.00016699,2]
[421012434,1776923439959,-768406.96099357,0.000167,2]
[421012435,1776923439975,-8246.18349024,0.000167,2]
[421012441,1776923443757,-2383.29178621,0.00016533,2]
[421012442,1776923443769,-7616.70821379,0.000167,2]
[421012443,1776923443783,-420.8168224,0.000167,2]
[421012444,1776923444261,-3902.3291586,0.000167,2]
[421012510,1776923446825,-72723.5133876,0.000167,2]
[421012511,1776923446879,-811215.46668201,0.000167,2]
[421012512,1776923446889,-151.0,0.000167,2]
[421012513,1776923446898,-151.0,0.000167,2]
[421012514,1776923446908,-151.0,0.000167,2]
[421012515,1776923446917,-151.0,0.000167,2]
[421012516,1776923446926,-158.670038,0.000167,2]
[421012517,1776923446936,-151.0,0.000167,2]
[421012518,1776923446945,-151.0,0.000167,2]
[421012519,1776923446954,-151.0,0.000167,2]
[421012520,1776923446963,-151.0,0.000167,2]
[421012521,1776923446972,-171.56615,0.000167,2]
[421012522,1776923446982,-171.56615,0.000167,2]
[421012523,1776923446991,-171.56615,0.000167,2]
[421012524,1776923447000,-171.56615,0.000167,2]
[421012525,1776923447009,-171.56615,0.000167,2]
[421012526,1776923447019,-171.56615,0.000167,2]
[421012527,1776923447029,-171.56615,0.000167,2]
[421012528,1776923447038,-171.56615,0.000167,2]
[421012529,1776923447048,-151.0,0.000167,2]
[421012530,1776923447057,-151.0,0.000167,2]
[421012531,1776923447068,-151.0,0.000167,2]
[421012532,1776923447081,-162.156851,0.000167,2]
[421012533,1776923447090,-3076.109822,0.000167,2]
[421012534,1776923447100,-3076.109822,0.000167,2]
[421012535,1776923447109,-3076.109822,0.000167,2]
[421012536,1776923447119,-3076.109822,0.000167,2]
[421012537,1776923447129,-560.819127,0.000167,2]
[421012538,1776923447138,-560.819127,0.000167,2]
[421012539,1776923447148,-3076.109822,0.000167,2]
[421012540,1776923447158,-560.819127,0.000167,2]
[421012541,1776923447167,-3076.109822,0.000167,2]
[421012542,1776923447177,-560.819127,0.000167,2]
[421012543,1776923447187,-151.0,0.000167,2]
[421012544,1776923447196,-151.0,0.000167,2]
[421012545,1776923447205,-3076.109822,0.000167,2]
[421012546,1776923447215,-3076.109822,0.000167,2]
[421012547,1776923447224,-560.819127,0.000167,2]
[421012548,1776923447234,-560.819127,0.000167,2]
[421012549,1776923447243,-560.819127,0.000167,2]
[421012550,1776923447253,-560.819127,0.000167,2]
[421012551,1776923447262,-151.0,0.000167,2]
[421012552,1776923447271,-151.0,0.000167,2]
[421012553,1776923447280,-151.0,0.000167,2]
[421012554,1776923447290,-151.0,0.000167,2]
[421012555,1776923447299,-151.0,0.000167,2]
[421012556,1776923447309,-151.0,0.000167,2]
[421012557,1776923447319,-151.0,0.000167,2]
[421012558,1776923447328,-151.0,0.000167,2]
[421012559,1776923447338,-151.0,0.000167,2]
[421012560,1776923447348,-151.0,0.000167,2]
[421012561,1776923447357,-151.0,0.000167,2]
[421012562,1776923447367,-151.0,0.000167,2]
[421012563,1776923447376,-151.0,0.000167,2]
[421012564,1776923447385,-151.0,0.000167,2]
[421012565,1776923447395,-833.77,0.00016799,2]
[421012566,1776923447404,-833.77,0.00016799,2]
[421012567,1776923447414,-833.77,0.00016799,2]
[421012568,1776923447424,-1492.32196803,0.000168,2]
[421012569,1776923447433,-160.0,0.00016811,2]
[421012570,1776923447442,-151.5,0.00016849,2]
[421012571,1776923447452,-151.5,0.00016849,2]
[421012572,1776923447461,-151.5,0.00016849,2]
[421012573,1776923447471,-201.70947891,0.00016849,2]
[421012574,1776923447480,-150.38016461,0.000169,2]
[421012575,1776923447490,-150.38016461,0.000169,2]
[421012576,1776923447499,-500.0,0.00016999,2]
[421012577,1776923447508,-500.0,0.00016999,3]
[421012578,1776923447518,-500.0,0.00016999,4]
[421012579,1776923447528,-500.0,0.00016999,5]
[421012580,1776923447537,-500.0,0.00016999,2]
[421012581,1776923447547,-500.0,0.00016999,2]
[421012582,1776923447556,-833.77,0.00016999,2]
[421012583,1776923447566,-29313.63290656,0.00017,2]
[421012584,1776923447575,-1492.32196803,0.00017,2]
[421012585,1776923447585,-151.0,0.00017,2]
[421012586,1776923447594,-151.0,0.00017,2]
[421012587,1776923447604,-151.0,0.00017,2]
[421012588,1776923447613,-151.0,0.00017,2]
[421012589,1776923447623,-171.56615,0.00017,2]
[421012590,1776923447632,-171.56615,0.00017,2]
[421012591,1776923447642,-171.56615,0.00017,2]
[421012592,1776923447652,-171.56615,0.00017,2]
[421012593,1776923447661,-151.0,0.00017,2]
[421012594,1776923447670,-3076.109822,0.00017,2]
[421012595,1776923447680,-3076.109822,0.00017,2]
[421012596,1776923447690,-560.819127,0.00017,2]
[421012597,1776923447700,-3076.109822,0.00017,2]
[421012598,1776923447709,-560.819127,0.00017,2]
[421012599,1776923447719,-3076.109822,0.00017,2]
[421012600,1776923447728,-560.819127,0.00017,2]
[421012601,1776923447737,-560.819127,0.00017,2]
[421012602,1776923447747,-151.0,0.00017,2]
[421012603,1776923447756,-151.0,0.00017,2]
[421012604,1776923447766,-151.0,0.00017,2]
[421012605,1776923447775,-151.0,0.00017,2]
[421012606,1776923447785,-151.0,0.00017,2]
[421012607,1776923447794,-256.685428,0.00017,2]